{"text_format":"3","workbook":"xlsx","n_sheets":1,"sheets":["Особистий місячний бюджет"],"read":"whole","date_system":"1900"}

{"sheet":"Особистий місячний бюджет","index":0,"n_rows":64,"n_cols":10,"rows_kept":64,"merged":[[1,1,1,9],[2,1,2,9],[4,1,6,1],[4,2,4,3],[4,6,5,8],[4,9,5,9],[5,2,5,3],[6,2,6,3],[6,6,7,8],[6,9,7,9],[7,1,9,1],[7,2,7,3],[8,2,8,3],[8,6,9,8],[8,9,9,9],[9,2,9,3],[22,6,22,9],[23,1,23,4],[31,6,31,9],[33,1,33,4],[38,6,38,9],[40,1,40,4],[44,6,44,9],[46,1,46,4],[50,6,50,9],[54,1,54,4],[57,6,57,9],[58,6,59,8],[58,9,59,9],[60,6,61,8],[60,9,61,9],[62,6,63,8],[62,9,63,9]]}
[]
[null,"Особистий місячний бюджет"]
[]
[]
[null,"ПРОГНОЗОВАНИЙ ЩОМІСЯЧНИЙ ДОХІД","Дохід 1",null,{"v":2500,"d":"2,500₴"},null,"ПРОГНОЗОВАНИЙ БАЛАНС (різниця прогнозованого доходу та витрат)",null,null,{"$f":"E7-J59","v":{"v":940,"d":"940₴"}}]
[null,null,"Додатковий дохід",null,{"v":500,"d":"500₴"}]
[null,null,"Загальний щомісячний дохід",null,{"$f":"SUM(E5:E6)","v":{"v":3000,"d":"3,000₴"}},null,"ФАКТИЧНИЙ БАЛАНС (різниця фактичного доходу та витрат)",null,null,{"$f":"E10-J61","v":{"v":960,"d":"960₴"}}]
[null,"ФАКТИЧНИЙ ЩОМІСЯЧНИЙ ДОХІД","Дохід 1",null,{"v":2500,"d":"2,500₴"}]
[null,null,"Додатковий дохід",null,{"v":500,"d":"500₴"},null,"РІЗНИЦЯ (різниця фактичної та прогнозованої сум)",null,null,{"$f":"J7-J5","v":{"v":20,"d":"20₴"}}]
[null,null,"Загальний щомісячний дохід",null,{"$f":"SUM(E8:E9)","v":{"v":3000,"d":"3,000₴"}}]
[]
[null,"ПОСЛУГИ","Прогнозовані витрати","Фактичні витрати","Різниця",null,"РОЗВАГИ","Прогнозовані витрати","Фактичні витрати","Різниця"]
[null,"Іпотека або оренда",{"v":1500,"d":"1,500₴"},{"v":1400,"d":"1,400₴"},{"$f":"Таблиця1[[#This Row],[Прогнозовані витрати]]-Таблиця1[[#This Row],[Фактичні витрати]]","v":{"v":100,"d":"100₴"}},null,"Відео/DVD",{"v":0,"d":"0₴"},{"v":50,"d":"50₴"},{"$f":"Таблиця2[[#This Row],[Прогнозовані витрати]]-Таблиця2[[#This Row],[Фактичні витрати]]","v":{"v":-50,"d":"-50₴"}}]
[null,"Номер телефону",{"v":60,"d":"60₴"},{"v":100,"d":"100₴"},{"$f":"Таблиця1[[#This Row],[Прогнозовані витрати]]-Таблиця1[[#This Row],[Фактичні витрати]]","v":{"v":-40,"d":"-40₴"}},null,"Компакт-диски",null,null,{"$f":"Таблиця2[[#This Row],[Прогнозовані витрати]]-Таблиця2[[#This Row],[Фактичні витрати]]","v":{"v":0,"d":"0₴"}}]
[null,"Електроенергія",{"v":50,"d":"50₴"},{"v":60,"d":"60₴"},{"$f":"Таблиця1[[#This Row],[Прогнозовані витрати]]-Таблиця1[[#This Row],[Фактичні витрати]]","v":{"v":-10,"d":"-10₴"}},null,"Фільми",null,null,{"$f":"Таблиця2[[#This Row],[Прогнозовані витрати]]-Таблиця2[[#This Row],[Фактичні витрати]]","v":{"v":0,"d":"0₴"}}]
[null,"Газ",{"v":200,"d":"200₴"},{"v":180,"d":"180₴"},{"$f":"Таблиця1[[#This Row],[Прогнозовані витрати]]-Таблиця1[[#This Row],[Фактичні витрати]]","v":{"v":20,"d":"20₴"}},null,"Концерти",null,null,{"$f":"Таблиця2[[#This Row],[Прогнозовані витрати]]-Таблиця2[[#This Row],[Фактичні витрати]]","v":{"v":0,"d":"0₴"}}]
[null,"Постачання води й водовідведення",null,null,{"$f":"Таблиця1[[#This Row],[Прогнозовані витрати]]-Таблиця1[[#This Row],[Фактичні витрати]]","v":{"v":0,"d":"0₴"}},null,"Спортивні події",null,null,{"$f":"Таблиця2[[#This Row],[Прогнозовані витрати]]-Таблиця2[[#This Row],[Фактичні витрати]]","v":{"v":0,"d":"0₴"}}]
[null,"Кабельне ТБ",null,null,{"$f":"Таблиця1[[#This Row],[Прогнозовані витрати]]-Таблиця1[[#This Row],[Фактичні витрати]]","v":{"v":0,"d":"0₴"}},null,"Театри",null,null,{"$f":"Таблиця2[[#This Row],[Прогнозовані витрати]]-Таблиця2[[#This Row],[Фактичні витрати]]","v":{"v":0,"d":"0₴"}}]
[null,"Вивезення сміття",null,null,{"$f":"Таблиця1[[#This Row],[Прогнозовані витрати]]-Таблиця1[[#This Row],[Фактичні витрати]]","v":{"v":0,"d":"0₴"}},null,"Інші",null,null,{"$f":"Таблиця2[[#This Row],[Прогнозовані витрати]]-Таблиця2[[#This Row],[Фактичні витрати]]","v":{"v":0,"d":"0₴"}}]
[null,"Обслуговування або ремонт",null,null,{"$f":"Таблиця1[[#This Row],[Прогнозовані витрати]]-Таблиця1[[#This Row],[Фактичні витрати]]","v":{"v":0,"d":"0₴"}},null,"Інше",null,null,{"$f":"Таблиця2[[#This Row],[Прогнозовані витрати]]-Таблиця2[[#This Row],[Фактичні витрати]]","v":{"v":0,"d":"0₴"}}]
[null,"Матеріали",null,null,{"$f":"Таблиця1[[#This Row],[Прогнозовані витрати]]-Таблиця1[[#This Row],[Фактичні витрати]]","v":{"v":0,"d":"0₴"}},null,"Інше",null,null,{"$f":"Таблиця2[[#This Row],[Прогнозовані витрати]]-Таблиця2[[#This Row],[Фактичні витрати]]","v":{"v":0,"d":"0₴"}}]
[null,"Інше",null,null,{"$f":"Таблиця1[[#This Row],[Прогнозовані витрати]]-Таблиця1[[#This Row],[Фактичні витрати]]","v":{"v":0,"d":"0₴"}},null,"Усього",{"$f":"SUBTOTAL(109,Таблиця2[Прогнозовані витрати])","v":{"v":0,"d":"0₴"}},{"$f":"SUBTOTAL(109,Таблиця2[Фактичні витрати])","v":{"v":50,"d":"50₴"}},{"$f":"SUBTOTAL(109,Таблиця2[Різниця])","v":{"v":-50,"d":"-50₴"}}]
[null,"Усього",{"$f":"SUBTOTAL(109,Таблиця1[Прогнозовані витрати])","v":{"v":1810,"d":"1,810₴"}},{"$f":"SUBTOTAL(109,Таблиця1[Фактичні витрати])","v":{"v":1740,"d":"1,740₴"}},{"$f":"SUBTOTAL(109,Таблиця1[Різниця])","v":{"v":70,"d":"70₴"}}]
[{"$nulls":6},"БОРГИ","Прогнозовані витрати","Фактичні витрати","Різниця"]
[null,"ТРАНСПОРТ","Прогнозовані витрати","Фактичні витрати","Різниця",null,"Особисті",null,null,{"$f":"Таблиця8[[#This Row],[Прогнозовані витрати]]-Таблиця8[[#This Row],[Фактичні витрати]]","v":{"v":0,"d":"0₴"}}]
[null,"Плата за авто",{"v":250,"d":"250₴"},{"v":250,"d":"250₴"},{"$f":"Таблиця3[[#This Row],[Прогнозовані витрати]]-Таблиця3[[#This Row],[Фактичні витрати]]","v":{"v":0,"d":"0₴"}},null,"На енергозбереження",null,null,{"$f":"Таблиця8[[#This Row],[Прогнозовані витрати]]-Таблиця8[[#This Row],[Фактичні витрати]]","v":{"v":0,"d":"0₴"}}]
[null,"Автобус/таксі",null,null,{"$f":"Таблиця3[[#This Row],[Прогнозовані витрати]]-Таблиця3[[#This Row],[Фактичні витрати]]","v":{"v":0,"d":"0₴"}},null,"Кредитна картка",null,null,{"$f":"Таблиця8[[#This Row],[Прогнозовані витрати]]-Таблиця8[[#This Row],[Фактичні витрати]]","v":{"v":0,"d":"0₴"}}]
[null,"Страхування",null,null,{"$f":"Таблиця3[[#This Row],[Прогнозовані витрати]]-Таблиця3[[#This Row],[Фактичні витрати]]","v":{"v":0,"d":"0₴"}},null,"Кредитна картка",null,null,{"$f":"Таблиця8[[#This Row],[Прогнозовані витрати]]-Таблиця8[[#This Row],[Фактичні витрати]]","v":{"v":0,"d":"0₴"}}]
[null,"Ліцензування",null,null,{"$f":"Таблиця3[[#This Row],[Прогнозовані витрати]]-Таблиця3[[#This Row],[Фактичні витрати]]","v":{"v":0,"d":"0₴"}},null,"Кредитна картка",null,null,{"$f":"Таблиця8[[#This Row],[Прогнозовані витрати]]-Таблиця8[[#This Row],[Фактичні витрати]]","v":{"v":0,"d":"0₴"}}]
[null,"Паливо",null,null,{"$f":"Таблиця3[[#This Row],[Прогнозовані витрати]]-Таблиця3[[#This Row],[Фактичні витрати]]","v":{"v":0,"d":"0₴"}},null,"Інше",null,null,{"$f":"Таблиця8[[#This Row],[Прогнозовані витрати]]-Таблиця8[[#This Row],[Фактичні витрати]]","v":{"v":0,"d":"0₴"}}]
[null,"Обслуговування",null,null,{"$f":"Таблиця3[[#This Row],[Прогнозовані витрати]]-Таблиця3[[#This Row],[Фактичні витрати]]","v":{"v":0,"d":"0₴"}},null,"Усього",{"$f":"SUBTOTAL(109,Таблиця8[Прогнозовані витрати])","v":{"v":0,"d":"0₴"}},{"$f":"SUBTOTAL(109,Таблиця8[Фактичні витрати])","v":{"v":0,"d":"0₴"}},{"$f":"SUBTOTAL(109,Таблиця8[Різниця])","v":{"v":0,"d":"0₴"}}]
[null,"Інше",null,null,{"$f":"Таблиця3[[#This Row],[Прогнозовані витрати]]-Таблиця3[[#This Row],[Фактичні витрати]]","v":{"v":0,"d":"0₴"}}]
[null,"Усього",{"$f":"SUBTOTAL(109,Таблиця3[Прогнозовані витрати])","v":{"v":250,"d":"250₴"}},{"$f":"SUBTOTAL(109,Таблиця3[Фактичні витрати])","v":{"v":250,"d":"250₴"}},{"$f":"SUBTOTAL(109,Таблиця3[Різниця])","v":{"v":0,"d":"0₴"}},null,"ПОДАТКИ","Прогнозовані витрати","Фактичні витрати","Різниця"]
[{"$nulls":6},"На доходи",null,null,{"$f":"Таблиця9[[#This Row],[Прогнозовані витрати]]-Таблиця9[[#This Row],[Фактичні витрати]]","v":{"v":0,"d":"0₴"}}]
[null,"СТРАХУВАННЯ","Прогнозовані витрати","Фактичні витрати","Різниця",null,"На майно",null,null,{"$f":"Таблиця9[[#This Row],[Прогнозовані витрати]]-Таблиця9[[#This Row],[Фактичні витрати]]","v":{"v":0,"d":"0₴"}}]
[null,"Дім",null,null,{"$f":"Таблиця4[[#This Row],[Прогнозовані витрати]]-Таблиця4[[#This Row],[Фактичні витрати]]","v":{"v":0,"d":"0₴"}},null,"Місцеві",null,null,{"$f":"Таблиця9[[#This Row],[Прогнозовані витрати]]-Таблиця9[[#This Row],[Фактичні витрати]]","v":{"v":0,"d":"0₴"}}]
[null,"Здоров’я",null,null,{"$f":"Таблиця4[[#This Row],[Прогнозовані витрати]]-Таблиця4[[#This Row],[Фактичні витрати]]","v":{"v":0,"d":"0₴"}},null,"Інше",null,null,{"$f":"Таблиця9[[#This Row],[Прогнозовані витрати]]-Таблиця9[[#This Row],[Фактичні витрати]]","v":{"v":0,"d":"0₴"}}]
[null,"Життя",null,null,{"$f":"Таблиця4[[#This Row],[Прогнозовані витрати]]-Таблиця4[[#This Row],[Фактичні витрати]]","v":{"v":0,"d":"0₴"}},null,"Усього",{"$f":"SUBTOTAL(109,Таблиця9[Прогнозовані витрати])","v":{"v":0,"d":"0₴"}},{"$f":"SUBTOTAL(109,Таблиця9[Фактичні витрати])","v":{"v":0,"d":"0₴"}},{"$f":"SUBTOTAL(109,Таблиця9[Різниця])","v":{"v":0,"d":"0₴"}}]
[null,"Інше",null,null,{"$f":"Таблиця4[[#This Row],[Прогнозовані витрати]]-Таблиця4[[#This Row],[Фактичні витрати]]","v":{"v":0,"d":"0₴"}}]
[null,"Усього",{"$f":"SUBTOTAL(109,Таблиця4[Прогнозовані витрати])","v":{"v":0,"d":"0₴"}},{"$f":"SUBTOTAL(109,Таблиця4[Фактичні витрати])","v":{"v":0,"d":"0₴"}},{"$f":"SUBTOTAL(109,Таблиця4[Різниця])","v":{"v":0,"d":"0₴"}},null,"ЗАОЩАДЖЕННЯ АБО ІНВЕСТИЦІЇ","Прогнозовані витрати","Фактичні витрати","Різниця"]
[{"$nulls":6},"Пенсійний внесок",null,null,{"$f":"Таблиця10[[#This Row],[Прогнозовані витрати]]-Таблиця10[[#This Row],[Фактичні витрати]]","v":{"v":0,"d":"0₴"}}]
[null,"ХАРЧУВАННЯ","Прогнозовані витрати","Фактичні витрати","Різниця",null,"Депозити",null,null,{"$f":"Таблиця10[[#This Row],[Прогнозовані витрати]]-Таблиця10[[#This Row],[Фактичні витрати]]","v":{"v":0,"d":"0₴"}}]
[null,"Продукти",null,null,{"$f":"Таблиця5[[#This Row],[Прогнозовані витрати]]-Таблиця5[[#This Row],[Фактичні витрати]]","v":{"v":0,"d":"0₴"}},null,"Інше",null,null,{"$f":"Таблиця10[[#This Row],[Прогнозовані витрати]]-Таблиця10[[#This Row],[Фактичні витрати]]","v":{"v":0,"d":"0₴"}}]
[null,"Ресторани/кафе",null,null,{"$f":"Таблиця5[[#This Row],[Прогнозовані витрати]]-Таблиця5[[#This Row],[Фактичні витрати]]","v":{"v":0,"d":"0₴"}},null,"Усього",{"$f":"SUBTOTAL(109,Таблиця10[Прогнозовані витрати])","v":{"v":0,"d":"0₴"}},{"$f":"SUBTOTAL(109,Таблиця10[Фактичні витрати])","v":{"v":0,"d":"0₴"}},{"$f":"SUBTOTAL(109,Таблиця10[Різниця])","v":{"v":0,"d":"0₴"}}]
[null,"Інше",null,null,{"$f":"Таблиця5[[#This Row],[Прогнозовані витрати]]-Таблиця5[[#This Row],[Фактичні витрати]]","v":{"v":0,"d":"0₴"}}]
[null,"Усього",{"$f":"SUBTOTAL(109,Таблиця5[Прогнозовані витрати])","v":{"v":0,"d":"0₴"}},{"$f":"SUBTOTAL(109,Таблиця5[Фактичні витрати])","v":{"v":0,"d":"0₴"}},{"$f":"SUBTOTAL(109,Таблиця5[Різниця])","v":{"v":0,"d":"0₴"}},null,"ПОДАРУНКИ Й ПОЖЕРТВИ","Прогнозовані витрати","Фактичні витрати","Різниця"]
[{"$nulls":6},"На благодійність 1",null,null,{"$f":"Таблиця11[[#This Row],[Прогнозовані витрати]]-Таблиця11[[#This Row],[Фактичні витрати]]","v":{"v":0,"d":"0₴"}}]
[null,"ДОМАШНІ УЛЮБЛЕНЦІ","Прогнозовані витрати","Фактичні витрати","Різниця",null,"На благодійність 2",null,null,{"$f":"Таблиця11[[#This Row],[Прогнозовані витрати]]-Таблиця11[[#This Row],[Фактичні витрати]]","v":{"v":0,"d":"0₴"}}]
[null,"Їжа",null,null,{"$f":"Таблиця6[[#This Row],[Прогнозовані витрати]]-Таблиця6[[#This Row],[Фактичні витрати]]","v":{"v":0,"d":"0₴"}},null,"На благодійність 3",null,null,{"$f":"Таблиця11[[#This Row],[Прогнозовані витрати]]-Таблиця11[[#This Row],[Фактичні витрати]]","v":{"v":0,"d":"0₴"}}]
[null,"Медицина",null,null,{"$f":"Таблиця6[[#This Row],[Прогнозовані витрати]]-Таблиця6[[#This Row],[Фактичні витрати]]","v":{"v":0,"d":"0₴"}},null,"Усього",{"$f":"SUBTOTAL(109,Таблиця11[Прогнозовані витрати])","v":{"v":0,"d":"0₴"}},{"$f":"SUBTOTAL(109,Таблиця11[Фактичні витрати])","v":{"v":0,"d":"0₴"}},{"$f":"SUBTOTAL(109,Таблиця11[Різниця])","v":{"v":0,"d":"0₴"}}]
[null,"Грумінг",null,null,{"$f":"Таблиця6[[#This Row],[Прогнозовані витрати]]-Таблиця6[[#This Row],[Фактичні витрати]]","v":{"v":0,"d":"0₴"}}]
[null,"Іграшки",null,null,{"$f":"Таблиця6[[#This Row],[Прогнозовані витрати]]-Таблиця6[[#This Row],[Фактичні витрати]]","v":{"v":0,"d":"0₴"}},null,"ЮРИДИЧНІ ПОСЛУГИ","Прогнозовані витрати","Фактичні витрати","Різниця"]
[null,"Інше",null,null,{"$f":"Таблиця6[[#This Row],[Прогнозовані витрати]]-Таблиця6[[#This Row],[Фактичні витрати]]","v":{"v":0,"d":"0₴"}},null,"Адвокат",null,null,{"$f":"Таблиця12[[#This Row],[Прогнозовані витрати]]-Таблиця12[[#This Row],[Фактичні витрати]]","v":{"v":0,"d":"0₴"}}]
[null,"Усього",{"$f":"SUBTOTAL(109,Таблиця6[Прогнозовані витрати])","v":{"v":0,"d":"0₴"}},{"$f":"SUBTOTAL(109,Таблиця6[Фактичні витрати])","v":{"v":0,"d":"0₴"}},{"$f":"SUBTOTAL(109,Таблиця6[Різниця])","v":{"v":0,"d":"0₴"}},null,"Аліменти",null,null,{"$f":"Таблиця12[[#This Row],[Прогнозовані витрати]]-Таблиця12[[#This Row],[Фактичні витрати]]","v":{"v":0,"d":"0₴"}}]
[{"$nulls":6},"Судові виплати",null,null,{"$f":"Таблиця12[[#This Row],[Прогнозовані витрати]]-Таблиця12[[#This Row],[Фактичні витрати]]","v":{"v":0,"d":"0₴"}}]
[null,"ДОГЛЯД ЗА СОБОЮ","Прогнозовані витрати","Фактичні витрати","Різниця",null,"Інше",null,null,{"$f":"Таблиця12[[#This Row],[Прогнозовані витрати]]-Таблиця12[[#This Row],[Фактичні витрати]]","v":{"v":0,"d":"0₴"}}]
[null,"Медицина",null,null,{"$f":"Таблиця7[[#This Row],[Прогнозовані витрати]]-Таблиця7[[#This Row],[Фактичні витрати]]","v":{"v":0,"d":"0₴"}},null,"Усього",{"$f":"SUBTOTAL(109,Таблиця12[Прогнозовані витрати])","v":{"v":0,"d":"0₴"}},{"$f":"SUBTOTAL(109,Таблиця12[Фактичні витрати])","v":{"v":0,"d":"0₴"}},{"$f":"SUBTOTAL(109,Таблиця12[Різниця])","v":{"v":0,"d":"0₴"}}]
[null,"Волосся/нігті",null,null,{"$f":"Таблиця7[[#This Row],[Прогнозовані витрати]]-Таблиця7[[#This Row],[Фактичні витрати]]","v":{"v":0,"d":"0₴"}}]
[null,"Одяг",null,null,{"$f":"Таблиця7[[#This Row],[Прогнозовані витрати]]-Таблиця7[[#This Row],[Фактичні витрати]]","v":{"v":0,"d":"0₴"}},null,"ЗАГАЛЬНІ ЗАПЛАНОВАНІ ВИТРАТИ",null,null,{"$f":"SUM(C23,C33,C40,C46,C54,C64,H22,H31,H38,H44,H50,H57)","v":{"v":2060,"d":"2,060₴"}}]
[null,"Хімчистка",null,null,{"$f":"Таблиця7[[#This Row],[Прогнозовані витрати]]-Таблиця7[[#This Row],[Фактичні витрати]]","v":{"v":0,"d":"0₴"}}]
[null,"Спортзал",null,null,{"$f":"Таблиця7[[#This Row],[Прогнозовані витрати]]-Таблиця7[[#This Row],[Фактичні витрати]]","v":{"v":0,"d":"0₴"}},null,"ЗАГАЛЬНІ ФАКТИЧНІ ВИТРАТИ",null,null,{"$f":"SUM(D23,D33,D40,D46,D54,D64,I22,I31,I38,I44,I50,H57)","v":{"v":2040,"d":"2,040₴"}}]
[null,"Екскурсії тощо",null,null,{"$f":"Таблиця7[[#This Row],[Прогнозовані витрати]]-Таблиця7[[#This Row],[Фактичні витрати]]","v":{"v":0,"d":"0₴"}}]
[null,"Інше",null,null,{"$f":"Таблиця7[[#This Row],[Прогнозовані витрати]]-Таблиця7[[#This Row],[Фактичні витрати]]","v":{"v":0,"d":"0₴"}},null,"ЗАГАЛЬНА РІЗНИЦЯ",null,null,{"$f":"SUM(E23,E33,E40,E46,E54,E64,J22,J31,J38,J44,J50,H57)","v":{"v":20,"d":"20₴"}}]
[null,"Усього",{"$f":"SUBTOTAL(109,Таблиця7[Прогнозовані витрати])","v":{"v":0,"d":"0₴"}},{"$f":"SUBTOTAL(109,Таблиця7[Фактичні витрати])","v":{"v":0,"d":"0₴"}},{"$f":"SUBTOTAL(109,Таблиця7[Різниця])","v":{"v":0,"d":"0₴"}}]